[Event "LEM Sachsen-Anhalt Open 2024"]
[Site "Merseburg"]
[Date "2024.02.08"]
[Round "1.2"]
[White "Tawilah, Youssef"]
[Black "Carnot, Luca"]
[Result "0-1"]
[ECO "D02"]
[WhiteElo "1541"]
[BlackElo "2063"]
[Annotator "NA RC"]
[PlyCount "122"]
[EventDate "2024.02.01"]
[EventType "swiss"]
[EventCountry "GER"]
[SourceTitle "playchess.com"]
[Source "ChessBase"]
[SourceQuality "1"]
[TimeControl "40/5400+30:1800+30"]

1. Nf3 {[%emt 0:00:03]} c5 {[%emt 0:00:23]} 2. c3 {[%emt 0:00:19]} Nf6 {[%emt 0:01:51]} 3. d4 {[%emt 0:00:42]} d5 {[%emt 0:00:39]} 4. Bf4 {[%emt 0:00:38]} Nc6 {[%emt 0:02:02]} 5. e3 {[%emt 0:02:06]} e6 {[%emt 0:00:58]} 6. Nbd2 {[%emt 0:01:23]} Bd6 {[%emt 0:04:37] 6...cxd4 is more fashionable.} 7. Bg3 {[%emt 0:02:03]} O-O {[%emt 0:02:51]} 8. Ne5 {[%emt 0:04:47] D02: 1 d4 d5 2 Nf3 sidelines, including 2...Nf6 3 g3 and 2...Nf6 3 Bf4.} Qc7 {[%emt 0:01:28]} 9. f4 {[%emt 0:02:08]} Ne8 {[%emt 0:08:50]} 10. Bd3 {[%emt 0:04:07]} Ne7 {[%emt 0:22:32]} 11. O-O {[%emt 0:17:24]} Rb8 $146 {[%emt 0:02:55]} ({Predecessor:} 11... f6 12. Nef3 g6 13. Rc1 Ng7 14. e4 Bxf4 15. Bxf4 Qxf4 16. Qe2 Qc7 17. e5 f5 18. dxc5 Qxc5+ {½-½ Sukandar,I (2384)-Fataliyeva,U (2384) Wch Rapid (Women) 2017 (7)}) 12. Qe2 {[%emt 0:08:56]} f6 {[%emt 0:06:32]} (12... c4 $5 13. Bb1 b5 $11) 13. Nef3 {[%emt 0:00:58]} Bd7 {[%emt 0:01:43]} (13... c4 $11 14. Bb1 b5) 14. e4 {[%emt 0:05:17]} dxe4 {[%emt 0:04:43]} 15. Nxe4 {[%emt 0:00:45]} Nf5 {[%emt 0:00:53]} 16. Nxd6 {[%emt 0:01:18]} Nxg3 {[%emt 0:05:37]} 17. hxg3 {[%emt 0:02:38]} Nxd6 {[%emt 0:00:43]} 18. Qc2 {[%emt 0:11:35]} Nf5 {[%emt 0:10:16]} 19. Bxf5 {[%emt 0:04:02]} exf5 {[%emt 0:00:05]} 20. d5 {[%emt 0:08:45]} c4 {[%emt 0:01:16]} 21. Rad1 {[%emt 0:03:43]} Rbd8 {[%emt 0:01:01]} 22. Rd4 {[%emt 0:00:42]} Bc8 {[%emt 0:02:08]} 23. Rfd1 {[%emt 0:01:06]} Qc5 {[%emt 0:00:29]} 24. Kh2 {[%emt 0:00:53]} Rd6 {[%emt 0:00:54]} 25. Ne1 {[%emt 0:00:49]} Re8 {[%emt 0:04:19]} 26. Qd2 {[%emt 0:04:01]} b5 {[%emt 0:05:21]} 27. Nc2 {[%emt 0:00:40]} Bb7 {[%emt 0:01:02]} ({Black should try} 27... Bd7 $11) 28. Ne3 {[%emt 0:02:03]} (28. b3 $16) 28... g6 {[%emt 0:03:26]} 29. g4 {[%emt 0:05:41]} (29. Re1 $14 Rdd8 30. b3) 29... fxg4 {[%emt 0:00:30]} 30. Nxg4 {[%emt 0:01:12]} Bc8 {[%emt 0:00:22]} 31. Nf2 {[%emt 0:01:09]} f5 {[%emt 0:03:57]} 32. Re1 {[%emt 0:01:52]} Rxe1 {[%emt 0:00:15]} 33. Qxe1 {[%emt 0:00:02]} Rd8 {[%emt 0:01:26]} 34. d6 {[%emt 0:02:19]} Qc6 {[%emt 0:00:08]} 35. Qd2 {[%emt 0:01:20]} Bb7 {[%emt 0:01:04]} 36. Nh3 {[%emt 0:00:02]} Qd7 {[%emt 0:00:29]} 37. Ng5 {[%emt 0:00:53]} h6 {[%emt 0:00:09]} 38. Nh3 {[%emt 0:00:01]} Qc6 {[%emt 0:00:44]} (38... Bc6 $11) 39. Ng1 {[%emt 0:00:38]} (39. d7 $142 Kf7 40. Rd6) 39... Qa6 {[%emt 0:00:33]} 40. b3 {[%emt 0:00:55]} Be4 {[%emt 0:00:20]} (40... Rd7 $11 {keeps the balance.}) 41. bxc4 {[%emt 0:30:32]} ({White should try} 41. d7 $16 Qf6 42. Nf3 (42. bxc4 bxc4 43. Nf3 Bxf3 $16) 42... Bxf3 43. gxf3) 41... bxc4 {[%emt 0:03:14]} 42. Nh3 {[%emt 0:00:00]} Qc6 {[%emt 0:00:55]} 43. Qe2 {[%emt 0:00:00]} Rxd6 {[%emt 0:00:55]} 44. Rxd6 {[%emt 0:00:00]} Qxd6 {[%emt 0:00:08]} 45. Qxc4+ {[%emt 0:00:00]} Kg7 {[%emt 0:01:31]} 46. Qd4+ $2 {[%emt 0:00:00]} (46. Qe2 $11 {and White stays safe.}) 46... Qxd4 {[%emt 0:00:14]} 47. cxd4 {[%emt 0:00:00]} Kf6 {[%emt 0:02:10]} 48. Nf2 {[%emt 0:00:00]} Bc2 {[%emt 0:08:37]} 49. Kg3 {[%emt 0:00:00]} Ke6 {[%emt 0:00:08]} 50. Kf3 {[%emt 0:00:00]} Kd5 {[%emt 0:00:26]} 51. Ke3 {[%emt 0:00:00]} Kc4 {[%emt 0:00:40]} 52. g3 {[%emt 0:00:00]} a5 {[%emt 0:00:48]} 53. Kd2 {[%emt 0:01:07]} Bb1 {[%emt 0:02:32]} 54. d5 {[%emt 0:01:34]} Kxd5 {[%emt 0:01:58]} 55. Nd1 $11 {[%emt 0:00:01]} Be4 {[%emt 0:02:12]} (55... Kd4 56. a3) (55... Bxa2 56. Nc3+ Kd4 57. Nxa2 $11) 56. Kc3 {[%emt 0:01:23]} Bb1 {[%emt 0:05:05]} 57. Kb2 $2 {[%emt 0:01:00]} Bd3 {[%emt 0:01:02]} (57... Bxa2 $142 58. Nc3+ Kd4 59. Nxa2 Ke3) 58. Kc3 {[%emt 0:01:49]} Be2 {[%emt 0:01:29]} 59. Nf2 {[%emt 0:00:51]} Bf1 {[%emt 0:02:49]} 60. a3 {[%emt 0:00:52]} Bb5 {[%emt 0:00:35]} 61. g4 $19 {[%emt 0:01:14]} (61. Kd2 $142 Kd4 62. Nd1) 61... h5 {[%emt 0:03:08]} 0-1

[Event "LEM Sachsen-Anhalt Open 2024"]
[Site "Merseburg"]
[Date "2024.02.08"]
[Round "1.4"]
[White "Swoboda, Julian"]
[Black "Hentzgen, Thomas"]
[Result "0-1"]
[ECO "B30"]
[WhiteElo "1492"]
[BlackElo "1939"]
[Annotator "RC"]
[PlyCount "98"]
[EventDate "2024.02.01"]
[EventType "swiss"]
[EventCountry "GER"]
[SourceTitle "playchess.com"]
[Source "ChessBase"]
[SourceQuality "1"]
[TimeControl "40/5400+30:1800+30"]

1. e4 {[%emt 0:00:03]} c5 {[%emt 0:00:03]} 2. Nf3 {[%emt 0:00:08]} Nc6 {[%emt 0:00:14]} 3. Bb5 {[%emt 0:00:18]} e6 {[%emt 0:00:57]} 4. O-O {[%emt 0:00:49]} Nge7 {[%emt 0:02:11]} 5. c3 {[%emt 0:02:48]} a6 {[%emt 0:01:47]} 6. Ba4 {[%emt 0:01:32]} b5 {[%emt 0:02:56]} 7. Bc2 {[%emt 0:00:19]} Bb7 {[%emt 0:12:13]} 8. d4 {[%emt 0:02:21]} cxd4 {[%emt 0:02:49]} 9. Nxd4 {[%emt 0:04:39]} Ng6 {[%emt 0:01:50]} 10. Nd2 {[%emt 0:03:38]} Be7 {[%emt 0:07:30]} 11. f4 {[%emt 0:05:52]} Qb6 {[%emt 0:05:45]} 12. N2f3 {[%emt 0:02:46]} f6 {[%emt 0:15:22]} 13. Kh1 {[%emt 0:04:51]} O-O-O {[%emt 0:05:58]} 14. a4 {[%emt 0:05:33]} b4 {[%emt 0:01:03]} 15. Qe2 {[%emt 0:05:03]} e5 {[%emt 0:05:31]} 16. Nxc6 {[%emt 0:04:24]} dxc6 {[%emt 0:03:58]} 17. a5 {[%emt 0:03:08]} Qc7 {[%emt 0:05:00]} 18. f5 {[%emt 0:03:09]} Nf4 {[%emt 0:00:23]} 19. Bxf4 {[%emt 0:00:27]} exf4 {[%emt 0:00:03]} 20. Nd4 {[%emt 0:00:57]} Qe5 {[%emt 0:02:32]} 21. Qc4 {[%emt 0:10:38]} c5 {[%emt 0:01:23]} 22. Ne6 {[%emt 0:01:35]} Rd2 {[%emt 0:00:39]} 23. cxb4 {[%emt 0:02:45]} f3 {[%emt 0:02:31]} 24. g3 {[%emt 0:11:42]} Qxb2 {[%emt 0:03:31]} 25. Rac1 {[%emt 0:01:14]} Qxb4 {[%emt 0:03:57]} 26. Qxb4 {[%emt 0:02:30]} cxb4 {[%emt 0:00:04]} 27. Rxf3 {[%emt 0:05:37]} Kb8 {[%emt 0:00:30]} 28. Bb1 {[%emt 0:01:43]} Rc8 {[%emt 0:00:49]} 29. Rxc8+ {[%emt 0:00:22]} Kxc8 {[%emt 0:13:31]} 30. Rf1 {[%emt 0:00:58]} b3 {[%emt 0:00:00]} 31. Kg1 {[%emt 0:03:18]} Bb4 {[%emt 0:00:00]} 32. Rc1+ {[%emt 0:02:22]} Kb8 {[%emt 0:00:00]} 33. Nxg7 {[%emt 0:01:45]} Bxa5 {[%emt 0:00:00]} 34. Ne6 {[%emt 0:00:48]} Bb6+ {[%emt 0:00:00]} 35. Kh1 {[%emt 0:02:04]} Re2 {[%emt 0:00:00]} 36. h4 {[%emt 0:00:34]} b2 {[%emt 0:00:00]} 37. Rd1 {[%emt 0:00:25]} Bxe4+ {[%emt 0:00:00]} 38. Bxe4 {[%emt 0:00:07]} Rxe4 {[%emt 0:00:00]} 39. Rb1 {[%emt 0:00:20]} Re2 {[%emt 0:00:16]} 40. Nf4 {[%emt 0:01:51]} Rc2 {[%emt 0:00:45]} 41. Nd3 {[%emt 0:30:47]} Bd4 {[%emt 0:30:10]} 42. g4 {[%emt 0:00:51]} a5 {[%emt 0:03:12]} 43. g5 {[%emt 0:01:06]} fxg5 {[%emt 0:00:20]} 44. hxg5 {[%emt 0:00:12]} a4 {[%emt 0:01:49]} 45. f6 {[%emt 0:01:29]} a3 {[%emt 0:00:24]} 46. f7 {[%emt 0:00:31]} Bg7 {[%emt 0:01:00]} 47. Re1 {[%emt 0:00:24]} a2 {[%emt 0:00:00]} 48. Nxb2 {[%emt 0:00:00]} Rxb2 {[%emt 0:00:00]} 49. Ra1 {[%emt 0:00:00]} Rb1+ {[%emt 0:00:00]} 0-1

[Event "LEM Sachsen-Anhalt Open 2024"]
[Site "Merseburg"]
[Date "2024.02.08"]
[Round "1.5"]
[White "Michalek, Martin"]
[Black "Brueggemann, Frank"]
[Result "1/2-1/2"]
[ECO "B23"]
[WhiteElo "1935"]
[BlackElo "2100"]
[Annotator "RC"]
[PlyCount "50"]
[EventDate "2024.02.01"]
[EventType "swiss"]
[EventCountry "GER"]
[SourceTitle "playchess.com"]
[Source "ChessBase"]
[SourceQuality "1"]
[TimeControl "40/5400+30:1800+30"]

1. e4 {[%emt 0:00:06]} d6 {[%emt 0:00:34]} 2. f4 {[%emt 0:00:39]} Nf6 {[%emt 0:00:47]} 3. Nc3 {[%emt 0:00:11]} c5 {[%emt 0:00:46]} 4. Nf3 {[%emt 0:00:22]} Nc6 {[%emt 0:00:53]} 5. Bb5 {[%emt 0:02:07]} Bd7 {[%emt 0:05:22]} 6. d3 {[%emt 0:05:35]} g6 {[%emt 0:03:30]} 7. O-O {[%emt 0:00:33]} Bg7 {[%emt 0:00:05]} 8. Qe1 {[%emt 0:00:35]} O-O {[%emt 0:00:07]} 9. Bxc6 {[%emt 0:09:36]} Bxc6 {[%emt 0:00:25]} 10. f5 {[%emt 0:00:12]} Qd7 {[%emt 0:01:57]} 11. Qh4 {[%emt 0:02:46]} b5 {[%emt 0:03:44]} 12. Ng5 {[%emt 0:10:18]} b4 {[%emt 0:16:48]} 13. Ne2 {[%emt 0:05:50]} e6 {[%emt 0:02:28]} 14. fxg6 {[%emt 0:08:31]} fxg6 {[%emt 0:01:44]} 15. Bd2 {[%emt 0:06:33]} e5 {[%emt 0:00:53]} 16. Rf3 {[%emt 0:03:15]} h6 {[%emt 0:10:43]} 17. Nh3 {[%emt 0:00:38]} Qg4 {[%emt 0:06:01]} 18. Qg3 {[%emt 0:08:15]} Bd7 {[%emt 0:00:47]} 19. Nf2 {[%emt 0:00:47]} Qxg3 {[%emt 0:02:16]} 20. Nxg3 {[%emt 0:03:03]} Ng4 {[%emt 0:02:08]} 21. Rxf8+ {[%emt 0:03:40]} Rxf8 {[%emt 0:00:14]} 22. Nxg4 {[%emt 0:00:23]} Bxg4 {[%emt 0:00:10]} 23. h3 {[%emt 0:28:05]} Be6 {[%emt 0:00:34]} 24. c3 {[%emt 0:00:00]} a5 {[%emt 0:07:23]} 25. b3 {[%emt 0:00:00]} Rc8 {[%emt 0:03:17]} 1/2-1/2

[Event "LEM Sachsen-Anhalt Open 2024"]
[Site "Merseburg"]
[Date "2024.02.08"]
[Round "1.6"]
[White "Zander, Ben Erik"]
[Black "Dobierzin, Olaf"]
[Result "0-1"]
[ECO "B88"]
[WhiteElo "1449"]
[BlackElo "1927"]
[Annotator "NA RC"]
[PlyCount "56"]
[EventDate "2024.02.01"]
[EventType "swiss"]
[EventCountry "GER"]
[SourceTitle "playchess.com"]
[Source "ChessBase"]
[SourceQuality "1"]
[TimeControl "40/5400+30:1800+30"]

1. e4 {[%emt 0:00:03]} c5 {[%emt 0:00:07]} 2. Nf3 {[%emt 0:00:09]} d6 {[%emt 0:00:09]} 3. d4 {[%emt 0:00:07]} cxd4 {[%emt 0:00:06]} 4. Nxd4 {[%emt 0:00:03]} Nf6 {[%emt 0:00:12]} 5. Nc3 {[%emt 0:00:20]} a6 {[%emt 0:00:13]} 6. Bc4 {[%emt 0:00:57]} e6 {[%emt 0:00:20]} 7. Bb3 {[%emt 0:01:19]} Nc6 {[%emt 0:00:40]} 8. Nf3 {[%emt 0:03:29] B88: Sicilian: Sozin Attack.} Be7 {[%emt 0:00:54]} 9. O-O {[%emt 0:01:48]} O-O {[%emt 0:00:24]} 10. Bg5 {[%emt 0:05:18]} b5 {[%emt 0:05:08]} 11. a3 {[%emt 0:03:00]} Qc7 {[%emt 0:01:59]} 12. Re1 {[%emt 0:16:51]} Bb7 {[%emt 0:01:58]} 13. Qe2 {[%emt 0:03:54]} Rac8 {[%emt 0:05:53]} 14. Rad1 {[%emt 0:03:21]} Rfd8 {[%emt 0:01:17]} 15. h3 {[%emt 0:41:37]} Na5 {[%emt 0:05:19]} 16. Ba2 {[%emt 0:01:08]} Nc4 {[%emt 0:05:10]} 17. Bc1 {[%emt 0:05:04]} (17. Bxc4 $15 Qxc4 18. Qxc4 Rxc4 19. Nd2) 17... Nxa3 {[%emt 0:05:41]} 18. Nd4 {[%emt 0:10:03]} Nc4 {[%emt 0:00:53]} 19. Bxc4 {[%emt 0:00:41]} Qxc4 {[%emt 0:00:19]} 20. Qxc4 {[%emt 0:00:03]} Rxc4 {[%emt 0:00:17]} 21. f3 {[%emt 0:00:27]} h6 {[%emt 0:06:43]} 22. Nb3 {[%emt 0:00:07]} Rcc8 {[%emt 0:02:03]} 23. Be3 {[%emt 0:00:33]} b4 {[%emt 0:02:34]} 24. Na2 {[%emt 0:00:01]} d5 {[%emt 0:02:14]} 25. exd5 {[%emt 0:02:37]} (25. e5 {is a better defense.} Nd7 26. c3) 25... Nxd5 {[%emt 0:00:26]} 26. Bd4 {[%emt 0:00:00]} Rxc2 {[%emt 0:02:07]} 27. Rc1 {[%emt 0:00:00]} Rdc8 {[%emt 0:01:47]} 28. Bc5 $19 {[%emt 0:00:56]} (28. Rxc2 Rxc2 29. Rc1 Rxc1+ 30. Naxc1) 28... Bxc5+ {[%emt 0:00:54]} 0-1

[Event "LEM Sachsen-Anhalt Open 2024"]
[Site "Merseburg"]
[Date "2024.02.08"]
[Round "1.7"]
[White "Noack, Thomas"]
[Black "Schaefer, Toni"]
[Result "0-1"]
[ECO "B23"]
[WhiteElo "1941"]
[BlackElo "1381"]
[Annotator "RC"]
[PlyCount "88"]
[EventDate "2024.02.01"]
[EventType "swiss"]
[EventCountry "GER"]
[SourceTitle "playchess.com"]
[Source "ChessBase"]
[SourceQuality "1"]
[TimeControl "40/5400+30:1800+30"]

1. e4 {[%emt 0:00:04]} c5 {[%emt 0:00:11]} 2. Nc3 {[%emt 0:00:15]} d6 {[%emt 0:00:09]} 3. f4 {[%emt 0:00:31]} g6 {[%emt 0:00:08]} 4. Nf3 {[%emt 0:00:21]} Bg7 {[%emt 0:00:21]} 5. Bc4 {[%emt 0:03:20]} e6 {[%emt 0:00:49]} 6. O-O {[%emt 0:09:28]} Ne7 {[%emt 0:00:51]} 7. Qe1 {[%emt 0:08:01]} O-O {[%emt 0:04:39]} 8. d3 {[%emt 0:05:38]} Nbc6 {[%emt 0:01:26]} 9. a3 {[%emt 0:01:45]} a6 {[%emt 0:00:54]} 10. Ba2 {[%emt 0:04:03]} b5 {[%emt 0:05:16]} 11. Qh4 {[%emt 0:06:52]} Nd4 {[%emt 0:00:36]} 12. Nxd4 {[%emt 0:08:01]} cxd4 {[%emt 0:00:09]} 13. Ne2 {[%emt 0:00:30]} d5 {[%emt 0:01:30]} 14. f5 {[%emt 0:07:08]} gxf5 {[%emt 0:11:33]} 15. Rf3 {[%emt 0:05:27]} Ng6 {[%emt 0:01:33]} 16. Qh5 {[%emt 0:07:10]} Re8 {[%emt 0:10:13]} 17. Rh3 {[%emt 0:04:06]} Nf8 {[%emt 0:00:40]} 18. Bh6 {[%emt 0:02:55]} Qf6 {[%emt 0:01:11]} 19. Bxg7 {[%emt 0:09:08]} Kxg7 {[%emt 0:00:28]} 20. exd5 {[%emt 0:00:57]} e5 {[%emt 0:01:03]} 21. Rf1 {[%emt 0:03:07]} f4 {[%emt 0:06:57]} 22. Rhf3 {[%emt 0:05:16]} Qg6 {[%emt 0:00:45]} 23. Qh4 {[%emt 0:00:40]} Bg4 {[%emt 0:02:33]} 24. R3f2 {[%emt 0:01:34]} Rac8 {[%emt 0:03:14]} 25. Bb3 {[%emt 0:00:18]} Bd7 {[%emt 0:15:14]} 26. Nxf4 {[%emt 0:02:32]} exf4 {[%emt 0:00:30]} 27. Qxf4 {[%emt 0:00:44]} f5 {[%emt 0:00:58]} 28. Qxd4+ {[%emt 0:00:45]} Qf6 {[%emt 0:00:06]} 29. Qxf6+ {[%emt 0:01:30]} Kxf6 {[%emt 0:00:01]} 30. g4 {[%emt 0:00:18]} Ng6 {[%emt 0:00:39]} 31. d6 {[%emt 0:02:20]} f4 {[%emt 0:00:12]} 32. h3 {[%emt 0:00:13]} Rc5 {[%emt 0:01:52]} 33. d4 {[%emt 0:00:15]} Rc6 {[%emt 0:00:13]} 34. c3 {[%emt 0:00:36]} Rxd6 {[%emt 0:01:33]} 35. Bc2 {[%emt 0:00:12]} Re3 {[%emt 0:00:24]} 36. Bxg6 {[%emt 0:01:05]} Kxg6 {[%emt 0:00:11]} 37. Rxf4 {[%emt 0:00:26]} Rxh3 {[%emt 0:00:07]} 38. Kg2 {[%emt 0:00:24]} Re3 {[%emt 0:00:12]} 39. Rf8 {[%emt 0:00:20]} Re2+ {[%emt 0:01:34]} 40. Kg3 {[%emt 0:00:50]} Re3+ {[%emt 0:01:11]} 41. Kf4 {[%emt 0:30:57]} Rde6 {[%emt 0:30:41]} 42. Rg8+ {[%emt 0:00:00]} Kf7 {[%emt 0:00:00]} 43. Rb8 {[%emt 0:00:00]} Kg7 {[%emt 0:00:00]} 44. Rg1 {[%emt 0:00:00]} h6 {[%emt 0:00:00]} 0-1

[Event "LEM Sachsen-Anhalt Open 2024"]
[Site "Merseburg"]
[Date "2024.02.08"]
[Round "1.8"]
[White "Wehrmann, Jens"]
[Black "Geldner, Gerrit"]
[Result "0-1"]
[ECO "B21"]
[WhiteElo "1415"]
[BlackElo "1889"]
[Annotator "NA RC"]
[PlyCount "50"]
[EventDate "2024.02.01"]
[EventType "swiss"]
[EventCountry "GER"]
[SourceTitle "playchess.com"]
[Source "ChessBase"]
[SourceQuality "1"]
[TimeControl "40/5400+30:1800+30"]

1. e4 {[%emt 0:00:30]} c5 {[%emt 0:00:25]} 2. d3 {[%emt 0:00:00]} Nc6 {[%emt 0:00:33]} 3. f4 {[%emt 0:00:08]} e6 {[%emt 0:00:33]} 4. Nf3 {[%emt 0:00:29]} g6 {[%emt 0:01:17]} 5. Be2 {[%emt 0:00:26]} Bg7 {[%emt 0:00:33]} 6. O-O {[%emt 0:00:24] B21: Sicilian: 2 f4 and Morra Gambit.} Nge7 {[%emt 0:00:44]} 7. c3 {[%emt 0:01:08]} O-O {[%emt 0:02:54]} 8. Na3 {[%emt 0:02:59]} d5 {[%emt 0:02:53]} 9. Nc2 {[%emt 0:10:44] 9.e5 is vanishing.} b6 {[%emt 0:05:31]} 10. Qe1 {[%emt 0:02:21]} Ba6 {[%emt 0:04:38]} 11. Qh4 $146 {[%emt 0:14:38]} ({Predecessor:} 11. e5 $11 d4 12. c4 Bb7 13. a3 a5 14. Rb1 a4 15. b4 axb3 16. Rxb3 Na5 17. Rb2 {0-1 Rendle,T (2375)-Siva,M (2349) Titled Tuesday intern op 11th Apr Early blitz 2023 (9)}) 11... dxe4 {[%emt 0:05:37]} 12. Ng5 {[%emt 0:07:50] [#]} h6 {[%emt 0:02:19]} ({Inferior is} 12... Bxd3 13. Qxh7#) ({Black should try} 12... h5 $1 $17 13. Nxe4 Bxd3) 13. Nxe4 {[%emt 0:00:25]} Nf5 {[%emt 0:05:51]} 14. Qxd8 {[%emt 0:04:34]} Raxd8 {[%emt 0:00:34]} 15. Rf3 {[%emt 0:05:59]} h5 {[%emt 0:05:16]} 16. Bf1 {[%emt 0:03:32]} Rd7 {[%emt 0:02:06]} 17. Bd2 {[%emt 0:04:14]} Rfd8 {[%emt 0:05:33]} 18. Nf2 {[%emt 0:00:38]} e5 {[%emt 0:03:14]} 19. Rd1 {[%emt 0:11:29]} c4 {[%emt 0:11:22]} 20. Bc1 {[%emt 0:12:46]} cxd3 $17 {[%emt 0:05:49]} 21. Bxd3 {[%emt 0:00:58]} e4 {[%emt 0:00:18]} 22. Nxe4 {[%emt 0:08:12]} Bxd3 {[%emt 0:01:01]} 23. Ne1 {[%emt 0:00:46]} Bxe4 {[%emt 0:00:17]} 24. Rxd7 {[%emt 0:02:01]} Rxd7 {[%emt 0:00:44]} 25. Rf2 {[%emt 0:00:28]} Rd1 {[%emt 0:01:05]} 0-1

[Event "LEM Sachsen-Anhalt Open 2024"]
[Site "Merseburg"]
[Date "2024.02.08"]
[Round "1.9"]
[White "Winnig, Bernd"]
[Black "Ziem, Ole"]
[Result "1-0"]
[ECO "E91"]
[WhiteElo "1883"]
[BlackElo "1391"]
[Annotator "NA RC"]
[PlyCount "93"]
[EventDate "2024.02.01"]
[EventType "swiss"]
[EventCountry "GER"]
[SourceTitle "playchess.com"]
[Source "ChessBase"]
[SourceQuality "1"]
[TimeControl "40/5400+30:1800+30"]

1. d4 {[%emt 0:00:03]} Nf6 {[%emt 0:00:20]} 2. c4 {[%emt 0:00:08]} g6 {[%emt 0:00:16]} 3. Nc3 {[%emt 0:00:08]} Bg7 {[%emt 0:00:28]} 4. e4 {[%emt 0:00:14]} d6 {[%emt 0:00:32]} 5. Be2 {[%emt 0:00:22]} O-O {[%emt 0:00:34]} 6. Nf3 {[%emt 0:00:14]} Nbd7 {[%emt 0:00:23]} 7. O-O {[%emt 0:01:29]} c5 {[%emt 0:00:32]} 8. dxc5 {[%emt 0:03:20]} Nxc5 {[%emt 0:00:34]} 9. Qc2 {[%emt 0:00:48]} b6 {[%emt 0:05:25] E91: King's Indian: Classical: 6 Be2, unusual replies including 6...c5 and 6...Bg4.} 10. Be3 {[%emt 0:05:59]} Bb7 {[%emt 0:01:40]} 11. Bxc5 {[%emt 0:05:22]} bxc5 {[%emt 0:00:19]} 12. Rad1 {[%emt 0:05:46]} Qb8 {[%emt 0:04:37]} 13. b3 {[%emt 0:03:19]} Rd8 {[%emt 0:02:12]} 14. Rfe1 {[%emt 0:02:38]} Bc6 {[%emt 0:06:04]} (14... e6 $15) 15. e5 $1 {[%emt 0:09:23]} dxe5 {[%emt 0:06:47]} 16. Rxd8+ {[%emt 0:00:04]} Qxd8 {[%emt 0:00:10]} 17. Nxe5 {[%emt 0:00:28]} Bb7 {[%emt 0:00:36]} 18. Bf3 {[%emt 0:01:52]} Bxf3 {[%emt 0:01:22]} 19. Nxf3 {[%emt 0:00:03]} Qc7 {[%emt 0:00:55]} 20. Rd1 {[%emt 0:08:29]} Rd8 {[%emt 0:00:29]} 21. Rd3 {[%emt 0:01:28]} Rd6 $2 {[%emt 0:01:53]} (21... Rxd3 $11 {and Black stays safe.} 22. Qxd3 h6) 22. Nb5 {[%emt 0:01:42]} Qd8 {[%emt 0:02:13]} 23. Nxd6 {[%emt 0:00:58]} exd6 {[%emt 0:00:11]} 24. Qe2 {[%emt 0:02:35]} Qc7 {[%emt 0:05:59]} 25. Nd2 {[%emt 0:05:00]} Qc6 {[%emt 0:02:01]} (25... h6 {is a better defense.} 26. h3 Kh7) 26. Qf3 {[%emt 0:03:14]} Qc7 {[%emt 0:01:10]} 27. Qa8+ {[%emt 0:01:36]} Bf8 {[%emt 0:00:10]} 28. Ne4 {[%emt 0:00:23]} Nxe4 {[%emt 0:01:51]} 29. Qxe4 {[%emt 0:00:04]} Qa5 {[%emt 0:00:50]} 30. Qe2 {[%emt 0:01:00]} h6 {[%emt 0:00:41]} 31. Qd2 {[%emt 0:03:26]} Qc7 {[%emt 0:00:23]} 32. Rf3 {[%emt 0:01:08]} Bg7 {[%emt 0:01:41]} 33. Qd5 {[%emt 0:02:30]} Qe7 {[%emt 0:00:53]} 34. Re3 {[%emt 0:01:35]} Qd7 {[%emt 0:00:09]} 35. Qa8+ {[%emt 0:01:11]} Kh7 {[%emt 0:00:30]} 36. g3 {[%emt 0:03:09]} Bd4 {[%emt 0:01:34]} 37. Rf3 {[%emt 0:02:09]} Qe7 {[%emt 0:01:55]} 38. Qd5 {[%emt 0:02:17]} Kg8 {[%emt 0:00:17]} 39. Kg2 {[%emt 0:01:51]} h5 {[%emt 0:01:20]} 40. Rf4 {[%emt 0:01:50]} Be5 {[%emt 0:00:33]} 41. Re4 {[%emt 0:30:22]} Qc7 {[%emt 0:31:44]} 42. f4 {[%emt 0:02:20]} Bg7 {[%emt 0:00:20]} 43. Re8+ {[%emt 0:01:40]} Kh7 {[%emt 0:00:18]} 44. Qe4 {[%emt 0:01:41]} Qa5 {[%emt 0:01:05]} (44... Bf6 {keeps fighting.} 45. Kf1 a5) 45. Qe2 {[%emt 0:00:40]} Qc3 $18 {[%emt 0:01:07]} 46. Re7 {[%emt 0:02:29]} Kg8 {[%emt 0:01:51]} 47. Rxa7 {[%emt 0:00:17]} 1-0

[Event "LEM Sachsen-Anhalt Open 2024"]
[Site "Merseburg"]
[Date "2024.02.08"]
[Round "1.10"]
[White "Wusterhausen, Sven"]
[Black "Korte, Markus"]
[Result "0-1"]
[ECO "D48"]
[WhiteElo "1378"]
[BlackElo "1879"]
[Annotator "NA RC"]
[PlyCount "50"]
[EventDate "2024.02.01"]
[EventType "swiss"]
[EventCountry "GER"]
[SourceTitle "playchess.com"]
[Source "ChessBase"]
[SourceQuality "1"]
[TimeControl "40/5400+30:1800+30"]

1. d4 {[%emt 1:31:00]} d5 {[%emt 0:01:00]} 2. c4 {[%emt 0:00:00]} c6 {[%emt 0:00:43]} 3. Nc3 {[%emt 0:00:00]} Nf6 {[%emt 0:00:07]} 4. Nf3 {[%emt 0:00:00]} e6 {[%emt 0:00:36]} 5. e3 {[%emt 0:00:00]} Nbd7 {[%emt 0:06:03]} 6. Bd3 {[%emt 0:00:00]} dxc4 {[%emt 0:01:46]} 7. Bxc4 {[%emt 0:00:00]} b5 {[%emt 0:00:09]} 8. Bd3 {[%emt 0:00:00]} a6 {[%emt 0:00:57]} 9. Bd2 {[%emt 0:00:00]} c5 {[%emt 0:06:12]} 10. dxc5 {[%emt 0:00:00]} Nxc5 {[%emt 0:00:45]} 11. Be2 {[%emt 0:00:00]} Bb7 {[%emt 0:04:31]} 12. a4 {[%emt 0:00:00]} b4 {[%emt 0:06:21]} 13. Na2 {[%emt 0:00:00] [#]} a5 $15 {[%emt 0:07:19]} 14. Nc1 {[%emt 0:00:00]} Bd6 {[%emt 0:05:41]} 15. O-O {[%emt 0:00:00]} O-O {[%emt 0:00:40]} 16. Bb5 {[%emt 0:00:00]} Bc7 {[%emt 0:04:15]} 17. Qe2 {[%emt 0:00:00]} Qd6 {[%emt 0:04:44]} 18. Rd1 {[%emt 0:00:00]} Bxf3 {[%emt 0:05:25]} 19. Qxf3 {[%emt 0:00:00]} Qxh2+ {[%emt 0:00:31]} 20. Kf1 {[%emt 0:00:00]} Rad8 {[%emt 0:02:52]} 21. g3 {[%emt 0:00:00]} Nfe4 {[%emt 0:04:13]} 22. Ke1 {[%emt 0:00:00]} Bxg3 {[%emt 0:07:48]} 23. fxg3 {[%emt 0:00:00]} Rxd2 {[%emt 0:00:57]} 24. Rxd2 {[%emt 0:00:00]} Qxd2+ {[%emt 0:00:37]} 25. Kf1 {[%emt 0:00:00]} Qxb2 {[%emt 0:01:25]} 0-1